Workbook

Sheet Dashboard
A1: USE SCROLL BARS TO PUT A CONDENSE TABLE IN YOUR DASHBOARD
B3: INCOME STATEMENT | C3: 2015 | D3: 2014 | E3: Budget | F3: PY | G3: Bdgt | J3: RATIOS | K3: 2015 | L3: 2014 | M3: Budget | N3: PY | O3: Budget | R3: www.excelnaccess.com
B4: =INDEX('Detailed Statements'!B3:B26,Scrollbar1) -> Other income | C4: =IFERROR(INDEX('Detailed Statements'!C3:C26,Scrollbar1),"") -> 46086421.44 | D4: =IFERROR(INDEX('Detailed Statements'!D3:D26,Scrollbar1),"") -> 37330001.37 | E4: =IFERROR(INDEX('Detailed Statements'!E3:E26,Scrollbar1),"") -> 34716901.27 | F4: =IFERROR(ABS(C4)/ABS(D4)-1,"NA") -> 0.2345679012 | G4: =IFERROR(ABS(C4)/ABS(E4)-1,"NA") -> 0.3274923669 | J4: =INDEX('Detailed Statements'!L3:L22,scrollbar3) -> Return on equity (ROE) | K4: =INDEX('Detailed Statements'!M3:M22,scrollbar3) -> 0.1026069272 | L4: =INDEX('Detailed Statements'!N3:N22,scrollbar3) -> 0.135140831 | M4: =INDEX('Detailed Statements'!O3:O22,scrollbar3) -> 0.166840532 | N4: =IFERROR(K4-L4,"NA") -> -0.03253390375 | O4: =IFERROR(K4-M4,"NA") -> -0.06423360484 | R4: Scroll Bars For | S4: Cell Link
B5: =INDEX('Detailed Statements'!B4:B27,Scrollbar1) -> Miscellaneous expenses | C5: =IFERROR(INDEX('Detailed Statements'!C4:C27,Scrollbar1),"") -> 0 | D5: =IFERROR(INDEX('Detailed Statements'!D4:D27,Scrollbar1),"") -> 0 | E5: =IFERROR(INDEX('Detailed Statements'!E4:E27,Scrollbar1),"") -> 0 | F5: NA | G5: =IFERROR(ABS(C5)/ABS(E5)-1,"NA") -> NA | J5: =INDEX('Detailed Statements'!L4:L22,scrollbar3) -> Return on invested capital | K5: =INDEX('Detailed Statements'!M4:M23,scrollbar3) -> 0.01541724038 | L5: =INDEX('Detailed Statements'!N4:N23,scrollbar3) -> 0.01429488967 | M5: =INDEX('Detailed Statements'!O4:O23,scrollbar3) -> 0.01474630724 | N5: =IFERROR(K5-L5,"NA") -> 0.001122350708 | O5: =IFERROR(K5-M5,"NA") -> 0.0006709331389 | R5: Income Statement | S5: 15
B6: =INDEX('Detailed Statements'!B5:B28,Scrollbar1) -> Net other income | C6: =IFERROR(INDEX('Detailed Statements'!C5:C28,Scrollbar1),"") -> 18670171.27 | D6: =IFERROR(INDEX('Detailed Statements'!D5:D28,Scrollbar1),"") -> 18296767.84 | E6: =IFERROR(INDEX('Detailed Statements'!E5:E28,Scrollbar1),"") -> 19943476.95 | F6: =IFERROR(ABS(C6)/ABS(D6)-1,"NA") -> 0.02040816327 | G6: -0.06384572177 | J6: =INDEX('Detailed Statements'!L5:L22,scrollbar3) -> Gross Profit margin | K6: =INDEX('Detailed Statements'!M5:M24,scrollbar3) -> 0.6245728705 | L6: =INDEX('Detailed Statements'!N5:N24,scrollbar3) -> 0.6662110619 | M6: =INDEX('Detailed Statements'!O5:O24,scrollbar3) -> 0.6537585187 | N6: -0.04163819137 | O6: -0.02918564815 | R6: Balance Sheet | S6: 20
B7: =INDEX('Detailed Statements'!B6:B29,Scrollbar1) -> Net income before Tax | C7: =IFERROR(INDEX('Detailed Statements'!C6:C29,Scrollbar1),"") -> 1087569272 | D7: =IFERROR(INDEX('Detailed Statements'!D6:D29,Scrollbar1),"") -> 957060959.4 | E7: =IFERROR(INDEX('Detailed Statements'!E6:E29,Scrollbar1),"") -> 937919740.3 | F7: 0.1363636364 | G7: 0.159554731 | J7: =INDEX('Detailed Statements'!L6:L24,scrollbar3) -> EBITDA margin | K7: =INDEX('Detailed Statements'!M6:M25,scrollbar3) -> 0.4430620845 | L7: =INDEX('Detailed Statements'!N6:N25,scrollbar3) -> 0.5316745014 | M7: =INDEX('Detailed Statements'!O6:O25,scrollbar3) -> 0.4720474545 | N7: -0.08861241689 | O7: -0.02898537001 | R7: Ratios | S7: 1
B8: =INDEX('Detailed Statements'!B7:B30,Scrollbar1) -> Tax | C8: =IFERROR(INDEX('Detailed Statements'!C7:C30,Scrollbar1),"") -> 61500000 | D8: =IFERROR(INDEX('Detailed Statements'!D7:D30,Scrollbar1),"") -> 54120000 | E8: =IFERROR(INDEX('Detailed Statements'!E7:E30,Scrollbar1),"") -> 53037600 | F8: 0.1363636364 | G8: 0.159554731 | J8: =INDEX('Detailed Statements'!L7:L25,scrollbar3) -> EBIT margin | K8: =INDEX('Detailed Statements'!M7:M26,scrollbar3) -> 0.302356319 | L8: =INDEX('Detailed Statements'!N7:N26,scrollbar3) -> 0.3527490389 | M8: =INDEX('Detailed Statements'!O7:O26,scrollbar3) -> 0.323078559 | N8: -0.05039271984 | O8: -0.02072223993 | R8: Cash Flow | S8: 12
B9: =INDEX('Detailed Statements'!B8:B31,Scrollbar1) -> Current Tax | C9: =IFERROR(INDEX('Detailed Statements'!C8:C31,Scrollbar1),"") -> 31500006 | D9: =IFERROR(INDEX('Detailed Statements'!D8:D31,Scrollbar1),"") -> 64120000 | E9: =IFERROR(INDEX('Detailed Statements'!E8:E31,Scrollbar1),"") -> 43039600 | F9: -0.5087335309 | G9: -0.2681157353 | J9: =INDEX('Detailed Statements'!L8:L26,scrollbar3) -> Net profitt Margin | K9: =INDEX('Detailed Statements'!M8:M27,scrollbar3) -> 0.2902411724 | L9: =INDEX('Detailed Statements'!N8:N27,scrollbar3) -> 0.3482894069 | M9: =INDEX('Detailed Statements'!O8:O27,scrollbar3) -> 0.3255041186 | N9: -0.05804823448 | O9: -0.03526294618
B10: =INDEX('Detailed Statements'!B9:B32,Scrollbar1) -> Deferred Tax | C10: =IFERROR(INDEX('Detailed Statements'!C9:C32,Scrollbar1),"") -> 61500000 | D10: =IFERROR(INDEX('Detailed Statements'!D9:D32,Scrollbar1),"") -> 54735000 | E10: =IFERROR(INDEX('Detailed Statements'!E9:E32,Scrollbar1),"") -> 50356200 | F10: =IFERROR(ABS(C10)/ABS(D10)-1,"NA") -> 0.1235955056 | G10: 0.2212994626 | J10: =INDEX('Detailed Statements'!L9:L27,scrollbar3) -> Fixed assets turnover | K10: =INDEX('Detailed Statements'!M9:M28,scrollbar3) -> 0.09362432748 | L10: =INDEX('Detailed Statements'!N9:N28,scrollbar3) -> 0.09505293375 | M10: =INDEX('Detailed Statements'!O9:O28,scrollbar3) -> 0.112405842 | N10: -0.00142860627 | O10: -0.01878151454 | R10: Maximum Value For Each Scroll Bar is determined as Follows
B12: BALANCE SHEET | C12: 2015 | D12: 2014 | E12: Budget | F12: PY | G12: Bdgt | J12: CASH FLOW | K12: 2015 | L12: 2014 | M12: Budget | N12: PY | O12: Bdgt | R12: Example Scroll Bar for "Ratios"
B13: =INDEX('Detailed Statements'!G3:G46,scrollbar2) -> Accrued expenses | C13: =INDEX('Detailed Statements'!H3:H46,scrollbar2) -> 5502076232 | D13: =INDEX('Detailed Statements'!I3:I46,scrollbar2) -> 4456681748 | E13: =INDEX('Detailed Statements'!J3:J46,scrollbar2) -> 3699045851 | F13: =IFERROR(ABS(C13)/ABS(D13)-1,"NA") -> 0.2345679012 | G13: =IFERROR(ABS(C13)/ABS(E13)-1,"NA") -> 0.4874312063 | J13: =INDEX('Detailed Statements'!Q3:Q29,scrollbar4) -> Interest Received | K13: =INDEX('Detailed Statements'!R3:R29,scrollbar4) -> 7148496.548 | L13: =INDEX('Detailed Statements'!S3:S29,scrollbar4) -> 4142902.165 | M13: =INDEX('Detailed Statements'!T3:T29,scrollbar4) -> 3728611.949 | N13: =IFERROR(ABS(K13)/ABS(L13)-1,"NA") -> 0.7254804152 | O13: =IFERROR(ABS(K13)/ABS(M13)-1,"NA") -> 0.9172004613 | R13: No of rows in Original Table | S13: =ROWS('Detailed Statements'!L3:L22) -> 20
B14: =INDEX('Detailed Statements'!G4:G47,scrollbar2) -> Unearned revenue - current | C14: =INDEX('Detailed Statements'!H4:H47,scrollbar2) -> 1249306740 | D14: =INDEX('Detailed Statements'!I4:I47,scrollbar2) -> 1099389931 | E14: =INDEX('Detailed Statements'!J4:J47,scrollbar2) -> 1165353327 | F14: 0.1363636364 | G14: =IFERROR(ABS(C14)/ABS(E14)-1,"NA") -> 0.07204116638 | J14: =INDEX('Detailed Statements'!Q4:Q30,scrollbar4) -> investment held to maturity | K14: =INDEX('Detailed Statements'!R4:R30,scrollbar4) -> 238417471.5 | L14: =INDEX('Detailed Statements'!S4:S30,scrollbar4) -> 81980109.25 | M14: =INDEX('Detailed Statements'!T4:T30,scrollbar4) -> 73782098.32 | N14: 1.908235591 | O14: =IFERROR(ABS(K14)/ABS(M14)-1,"NA") -> 2.231372879 | R14: No of rows in condensed Report | S14: =ROWS(J4:J10) -> 7
B15: =INDEX('Detailed Statements'!G5:G48,scrollbar2) -> Derivatives - current liability | C15: =INDEX('Detailed Statements'!H5:H48,scrollbar2) -> 0 | D15: =INDEX('Detailed Statements'!I5:I48,scrollbar2) -> 0 | E15: =INDEX('Detailed Statements'!J5:J48,scrollbar2) -> 0 | F15: NA | G15: NA | J15: =INDEX('Detailed Statements'!Q5:Q31,scrollbar4) -> Investments in equity and other | K15: =INDEX('Detailed Statements'!R5:R31,scrollbar4) -> 0 | L15: =INDEX('Detailed Statements'!S5:S31,scrollbar4) -> 0 | M15: =INDEX('Detailed Statements'!T5:T31,scrollbar4) -> 0 | N15: NA | O15: NA | R15: Maximum Value | S15: =S13-S14+1 -> 14
B16: =INDEX('Detailed Statements'!G6:G49,scrollbar2) -> Borrowings ST | C16: =INDEX('Detailed Statements'!H6:H49,scrollbar2) -> 1054444445 | D16: =INDEX('Detailed Statements'!I6:I49,scrollbar2) -> 1001722223 | E16: =INDEX('Detailed Statements'!J6:J49,scrollbar2) -> 861481111.6 | F16: 0.05263157895 | G16: 0.2239902081 | J16: =INDEX('Detailed Statements'!Q6:Q32,scrollbar4) -> Investments in Joint Ventures | K16: =INDEX('Detailed Statements'!R6:R32,scrollbar4) -> 0 | L16: =INDEX('Detailed Statements'!S6:S32,scrollbar4) -> 0 | M16: =INDEX('Detailed Statements'!T6:T32,scrollbar4) -> 0 | N16: NA | O16: NA
B17: =INDEX('Detailed Statements'!G7:G50,scrollbar2) -> Total current liabilities | C17: =INDEX('Detailed Statements'!H7:H50,scrollbar2) -> 25969482113 | D17: =INDEX('Detailed Statements'!I7:I50,scrollbar2) -> 2.441131319e+10 | E17: =INDEX('Detailed Statements'!J7:J50,scrollbar2) -> 2.319074753e+10 | F17: 0.06382978723 | G17: 0.1198208287 | J17: =INDEX('Detailed Statements'!Q7:Q33,scrollbar4) -> Investments in Subsidiaries | K17: =INDEX('Detailed Statements'!R7:R33,scrollbar4) -> 0 | L17: =INDEX('Detailed Statements'!S7:S33,scrollbar4) -> 0 | M17: =INDEX('Detailed Statements'!T7:T33,scrollbar4) -> 0 | N17: NA | O17: NA
B18: =INDEX('Detailed Statements'!G8:G51,scrollbar2) -> Other Payables - non current | C18: =INDEX('Detailed Statements'!H8:H51,scrollbar2) -> 0 | D18: =INDEX('Detailed Statements'!I8:I51,scrollbar2) -> 0 | E18: =INDEX('Detailed Statements'!J8:J51,scrollbar2) -> 0 | F18: NA | G18: NA | J18: =INDEX('Detailed Statements'!Q8:Q34,scrollbar4) -> Other Investments | K18: =INDEX('Detailed Statements'!R8:R34,scrollbar4) -> 0 | L18: =INDEX('Detailed Statements'!S8:S34,scrollbar4) -> 0 | M18: =INDEX('Detailed Statements'!T8:T34,scrollbar4) -> 0 | N18: NA | O18: NA
B19: =INDEX('Detailed Statements'!G9:G52,scrollbar2) -> Unearned revenue-Non current | C19: =INDEX('Detailed Statements'!H9:H52,scrollbar2) -> 25969482113 | D19: =INDEX('Detailed Statements'!I9:I52,scrollbar2) -> 2.752765104e+10 | E19: =INDEX('Detailed Statements'!J9:J52,scrollbar2) -> 2.257267385e+10 | F19: =IFERROR(ABS(C19)/ABS(D19)-1,"NA") -> -0.05660377358 | G19: 0.1504832029 | J19: =INDEX('Detailed Statements'!Q9:Q35,scrollbar4) -> Proceeds from sale of PPE | K19: =INDEX('Detailed Statements'!R9:R35,scrollbar4) -> -203268417.3 | L19: =INDEX('Detailed Statements'!S9:S35,scrollbar4) -> -96026256.72 | M19: =INDEX('Detailed Statements'!T9:T35,scrollbar4) -> -76821005.38 | N19: =IFERROR(ABS(K19)/ABS(L19)-1,"NA") -> 1.116800387 | O19: 1.646000483

Sheet Detailed Statements
B2: INCOME STATEMENT | C2: 2015 | D2: 2014 | E2: Budget | G2: BALANCE SHEET | H2: 2015 | I2: 2014 | J2: Budget | L2: RATIOS | M2: 2015 | N2: 2014 | O2: Budget | Q2: CASHFLOWS | R2: 2015 | S2: 2014 | T2: Budget
B3: Sales | C3: 3535229904 | D3: 3181706914 | E3: 3404426398 | G3: Cash and bank | H3: 1101719633 | I3: 1156805615 | J3: 1145237559 | L3: Return on equity (ROE) | M3: ='Detailed Statements'!C26/'Detailed Statements'!H43 -> 0.1026069272 | N3: 0.135140831 | O3: 0.166840532 | Q3: Cash Flow from Operations | R3: 1.249775198e+10 | S3: 1.158543448e+10 | T3: 1.042689104e+10
B4: Cost of Goods Sold | C4: 1327221215 | D4: 1433398912 | E4: 1447732901 | G4: Short term investments | H4: 8249000000 | I4: 8166510000 | J4: 8248175100 | L4: Return on invested capital | M4: ='Detailed Statements'!C12/('Detailed Statements'!H18-'Detailed Statements'!H26) -> 0.01541724038 | N4: 0.01429488967 | O4: 0.01474630724 | Q4: Net income | R4: 6641422444 | S4: 5975147235 | T4: 4780117788
B5: Gross Profit | C5: 2208008689 | D5: 2119688342 | E5: 2225672759 | G5: Debtors | H5: 19033810459 | I5: 2.09371915e+10 | J5: 2.240279491e+10 | L5: Gross Profit margin | M5: ='Detailed Statements'!C5/'Detailed Statements'!C3 -> 0.6245728705 | N5: 0.6662110619 | O5: 0.6537585187 | Q5: Non Cash and Other Items | R5: 5917049257 | S5: 6487380748 | T5: 6487380748
B6: Admin & General Expenses | C6: 156917549.7 | D6: 171040129.1 | E6: 147094511 | G6: Inventories | H6: 0 | I6: 0 | J6: 0 | L6: EBITDA margin | M6: ='Detailed Statements'!C11/'Detailed Statements'!C3 -> 0.4430620845 | N6: 0.5316745014 | O6: 0.4720474545 | Q6: Working Capital and other changes | R6: 54682099.55 | S6: -647546418.5 | T6: -582791776.6
B7: Selling And Marketing Expenses | C7: 484764809.1 | D7: 475069513 | E7: 494072293.5 | G7: Other current assets | H7: 2434295015 | I7: 2069150763 | J7: 2131225286 | L7: EBIT margin | M7: ='Detailed Statements'!C12/'Detailed Statements'!C3 -> 0.302356319 | N7: 0.3527490389 | O7: 0.323078559 | Q7: End of service benefits | R7: -115401818.9 | S7: -229547081.4 | T7: -206592373.3
B8: Distribution Expenses | C8: 497427229.6 | D8: 477530140.4 | E8: 391574715.1 | G8: Total current assets | H8: 39033810459 | I8: 4.059516288e+10 | J8: 4.424872754e+10 | L8: Net profitt Margin | M8: ='Detailed Statements'!C26/'Detailed Statements'!C3 -> 0.2902411724 | N8: 0.3482894069 | O8: 0.3255041186 | Q8: Paid Gratuity | R8: 0 | S8: 0 | T8: 0
B9: Provisions | C9: 0 | D9: 0 | E9: 0 | G9: Fixed Assets | H9: 34485893044 | I9: 3.000272695e+10 | J9: 2.730248152e+10 | L9: Fixed assets turnover | M9: ='Detailed Statements'!C3/('Detailed Statements'!H9+'Detailed Statements'!H10) -> 0.09362432748 | N9: 0.09505293375 | O9: 0.112405842 | Q9: Tax paid | R9: -32442342 | S9: -45435345 | T9: -34654234
B10: Total Operating expenses | C10: 1139109588 | D10: 1173282876 | E10: 1149817219 | G10: Intangible assets | H10: 3273843122 | I10: 3470273709 | J10: 2984435390 | L10: Revenue growth (YOY) | M10: ='Detailed Statements'!C3/'Detailed Statements'!D3-1 -> 0.1111111111 | N10: -0.06542056075 | O10: -0.07130841121 | Q10: Cash Flow from Investing Activities | R10: -4504454068 | S10: -1141225466 | T10: -1141225466
B11: EBITDA | C11: 1566326330 | D11: 1691632437 | E11: 1607050815 | G11: Investments in Associates | H11: 1425324075 | I11: 1439577316 | J11: 1554743501 | L11: Gross Profit growth (YOY) | M11: ='Detailed Statements'!C5/'Detailed Statements'!D5-1 -> 0.04166666667 | N11: -0.04761904762 | O11: -0.04666666667 | Q11: Capital expenditures | R11: -327214368 | S11: -416650114.6 | T11: -333320091.7
B12: Operating income | C12: 1068899101 | D12: 1122344056 | E12: 1099897175 | G12: Investment in Subsidiaries | H12: 4554894985 | I12: 3780562838 | J12: 3364700925 | L12: EBITDA growth (YOY) | M12: ='Detailed Statements'!C11/'Detailed Statements'!D11-1 -> -0.07407407407 | N12: 0.05263157895 | O12: 0.04789473684 | Q12: Dividends recieved | R12: 0 | S12: 0 | T12: 0
B13: Cost of early retirement | C13: 0 | D13: 0 | E13: 0 | G13: Investment in Joint Ventures | H13: 17135798765 | I13: 1.764987273e+10 | J13: 1.676737909e+10 | L13: EBIT growth (YOY) | M13: ='Detailed Statements'!C12/'Detailed Statements'!D12-1 -> -0.04761904762 | N13: 0.02040816327 | O13: 0.01653061224 | Q13: Intangible assets net | R13: -518498996.6 | S13: -504063511.8 | T13: -504063511.8
B14: Finance Income | C14: 20533150.28 | D14: 18479835.25 | E14: 19403827.01 | G14: Other Investment | H14: 33483954 | I14: 32814274.92 | J14: 30517275.68 | L14: Net profit growth (YOY) | M14: ='Detailed Statements'!C26/'Detailed Statements'!D26-1 -> -0.07407407407 | N14: 0 | O14: 0 | Q14: Interest Received | R14: 7148496.548 | S14: 4142902.165 | T14: 3728611.949
B15: Investment Income | C15: 50264750.68 | D15: 46746218.13 | E15: 48148604.68 | G15: Derivatives | H15: 33483954 | I15: 36832349.4 | J15: 34254084.94 | L15: Shareholders' Equity growth (YOY) | M15: ='Detailed Statements'!H43/'Detailed Statements'!I43-1 -> 0.2195121951 | N15: 0.2345679012 | O15: 0.2486419753 | Q15: investment held to maturity | R15: 238417471.5 | S15: 81980109.25 | T15: 73782098.32
B16: Finance Cost | C16: 6041308.25 | D16: 5074698.93 | E16: 4567229.037 | G16: Other non current assets | H16: 3572834696 | I16: 2893996104 | J16: 3038695909 | L16: Total Debt %age | M16: 0.4 | N16: 0.332 | O16: 0.3486 | Q16: Investments in equity and other | R16: 0 | S16: 0 | T16: 0
B17: Other income | C17: 46086421.44 | D17: 37330001.37 | E17: 34716901.27 | G17: Total non current assets | H17: 64482072641 | I17: 6.125796901e+10 | J17: 6.248312839e+10 | L17: Total Equity %age | M17: =100%-M16 -> 0.6 | N17: 0.668 | O17: 0.6514 | Q17: Investments in Joint Ventures | R17: 0 | S17: 0 | T17: 0
B18: Miscellaneous expenses | C18: 0 | D18: 0 | E18: 0 | G18: Total assets | H18: 95300897748 | I18: 1.029249696e+11 | J18: 9.777872109e+10 | L18: Current ratio | M18: ='Detailed Statements'!H8/'Detailed Statements'!H26 -> 1.503064647 | N18: 1.593248526 | O18: 1.497653614 | Q18: Investments in Subsidiaries | R18: 0 | S18: 0 | T18: 0
B19: Net other income | C19: 18670171.27 | D19: 18296767.84 | E19: 19943476.95 | G19: Trade Payables | H19: 14750883082 | I19: 1.416084776e+10 | J19: 1.51521071e+10 | L19: Debt to Equity ratio | M19: 0.6 | N19: 0.654 | O19: 0.71286 | Q19: Other Investments | R19: 0 | S19: 0 | T19: 0
B20: Net income before Tax | C20: 1087569272 | D20: 957060959.4 | E20: 937919740.3 | G20: Dividend Payable | H20: 1055492612 | I20: 1013272908 | J20: 841016513.2 | L20: Total Capital to Equity ratio | M20: 0.8 | N20: 0.768 | O20: 0.67584 | Q20: Proceeds from sale of PPE | R20: -203268417.3 | S20: -96026256.72 | T20: -76821005.38
B21: Tax | C21: 61500000 | D21: 54120000 | E21: 53037600 | G21: Other payables - current | H21: 2357279002 | I21: 2262987842 | J21: 2127208571 | L21: Interest coverage | M21: ='Detailed Statements'!C12/'Detailed Statements'!C16 -> 176.9317268 | N21: 221.1646585 | O21: 240.8237393 | Q21: Short term investments | R21: -3701038254 | S21: -210608594.5 | T21: -210608594.5
B22: Current Tax | C22: 31500006 | D22: 64120000 | E22: 43039600 | G22: Accrued expenses | H22: 5502076232 | I22: 4456681748 | J22: 3699045851 | L22: Average Finance Cost (Finance expense / total debt) | M22: 0.05 | N22: 0.06 | O22: 0.07 | Q22: Cash Flow from Financing Activities | R22: -1.07922401e+10 | S22: -1.162855024e+10 | T22: -9302840189
B23: Deferred Tax | C23: 61500000 | D23: 54735000 | E23: 50356200 | G23: Unearned revenue - current | H23: 1249306740 | I23: 1099389931 | J23: 1165353327 | Q23: Acquisition of additional shareholding in a subsidiary | R23: 0 | S23: 0 | T23: 0
B24: Net income before minority interest | C24: 1026069272 | D24: 1056851350 | E24: 1014577296 | G24: Derivatives - current liability | H24: 0 | I24: 0 | J24: 0 | Q24: Capital increase | R24: 0 | S24: 0 | T24: 0
B25: Minority Interest | C25: 0 | D25: 0 | E25: 0 | G25: Borrowings ST | H25: 1054444445 | I25: 1001722223 | J25: 861481111.6 | Q25: Cash flows from financing activities | R25: -5396120048 | S25: -5814275118 | T25: -5814275118
B26: Net income for the year | C26: 1026069272 | D26: 1108154814 | E26: 1108154814 | G26: Total current liabilities | H26: 25969482113 | I26: 2.441131319e+10 | J26: 2.319074753e+10 | Q26: Dividends paid | R26: -4210210179 | S26: -4735696021 | T26: -4262126419
G27: Other Payables - non current | H27: 0 | I27: 0 | J27: 0 | Q27: Murabahas and Loans net | R27: -1166052069 | S27: -1066071686 | T27: -959464517.2
G28: Unearned revenue-Non current | H28: 25969482113 | I28: 2.752765104e+10 | J28: 2.257267385e+10 | Q28: Paid Finance costs | R28: -19857800.31 | S28: -12507410.78 | T28: -11256669.7
G29: Borrowings LT | I29: 0 | J29: 0 | Q29: Shareholders Loan | R29: 0 | S29: 0 | T29: 0
G30: Derivative Liability - non current | I30: 0 | J30: 0
G31: Long Term Provisions | H31: 47125000 | I31: 49010000 | J31: 47539700
G32: Defined Benfit Liability | H32: 30570313 | I32: 30876016.13 | J32: 32419816.94
G33: Total non current liabilities | H33: 4481388887 | I33: 4481388887 | J33: 3809180554
G34: Total liabilities | H34: 0 | I34: 0 | J34: 0
G35: Paid Up Capital | H35: 2837653067 | I35: 2951159190 | J35: 2656043271
G36: Share Premiun | H36: 7396737267 | I36: 6213259304 | J36: 5219137816
G37: Shareholder Loans | H37: 4396737267 | I37: 4220867776 | J37: 4600745876
G38: Hedging reserves-net of tax | H38: 33366219380 | I38: 3.570185474e+10 | J38: 3.070359507e+10
G39: Other Reserves | H39: 2766757267 | I39: 2683754549 | J39: 2952130004
G40: Retained earnings | I40: 0 | J40: 0
G41: Unrealized loss on investments | H41: 20000000000 | I41: 16600000000 | J41: 14940000000
G42: Exchange fluctuation reserve | H42: 0 | I42: 0 | J42: 0
G43: Total shareholders' equity | H43: 10000000000 | I43: 8200000000 | J43: 6642000000
G44: Minority Interest | H44: 0 | I44: 0 | J44: 0
G45: Total Equity | H45: 0 | I45: 0 | J45: 0
G46: Total liabilities and equity | H46: 31948050535 | I46: 3.418441407e+10 | J46: 3.520994649e+10
